bitfinex/quotes_SOLUSD_20251214
["timestamp","ask_amount","ask_price","bid_price","bid_amount"]
[1765723151571,8.38,130.74,130.71,0.7]
[1765723152373,16.02887611,130.74,130.71,0.7]
[1765723152568,16.68887611,130.74,130.7,12.0]
[1765723152769,0.66,130.73,130.7,12.0]
[1765723153473,7.6499388,130.72,130.7,12.0]
[1765723153843,8.38,130.74,130.71,0.7]
[1765723155461,19.77823822,130.77,130.71,8.35029897]
[1765723155462,16.02772808,130.76,130.71,8.35029897]
[1765723155663,8.38,130.76,130.71,8.35029897]
[1765723155859,7.64717771,130.77,130.72,0.7]
[1765723157080,7.64717771,130.77,130.72,8.34951822]
[1765723157454,7.64717771,130.77,130.73,0.7]
[1765723158266,0.66,130.76,130.71,0.7]
[1765723158663,8.38,130.75,130.7,12.0]
[1765723158868,8.38,130.75,130.7,12.7]
[1765723159050,9.04,130.75,130.7,12.7]
[1765723159255,9.04,130.75,130.7,12.0]
[1765723159564,9.04,130.75,130.71,0.7]
[1765723160486,7.64876854,130.74,130.71,0.7]
[1765723160656,112.24876854,130.74,130.71,0.7]
[1765723160856,112.90876854,130.74,130.7,12.0]
[1765723161160,112.24876854,130.74,130.7,12.0]
[1765723161362,112.24876854,130.74,130.7,12.7]
[1765723161667,112.24876854,130.74,130.7,12.0]
[1765723161878,112.24876854,130.74,130.71,0.7]
[1765723163475,131.37068991,130.74,130.7,12.0]
[1765723163682,105.26,130.73,130.7,12.0]
[1765723166390,0.66,130.71,130.7,12.0]
[1765723167673,8.31052406,130.71,130.7,12.0]
[1765723169572,7.65052406,130.71,130.7,12.0]
[1765723169770,8.35052406,130.71,130.7,12.0]
[1765723170295,7.65052406,130.71,130.7,12.0]
[1765723171387,16.03018013,130.72,130.7,12.0]
[1765723171699,8.38,130.74,130.71,0.72]
[1765723172301,7.64759865,130.76,130.71,8.37047821]
[1765723172660,7.64759865,130.76,130.72,0.72]
[1765723172860,7.64525993,130.8,130.72,9.38432314]
[1765723173060,0.7,130.85,130.74,0.28432314]
[1765723173287,9.08,130.85,130.74,0.28432314]
[1765723173472,9.08,130.85,130.77,0.28432314]
[1765723173672,7.64292265,130.84,130.78,7.64642911]
[1765723173864,7.64292265,130.84,130.78,8.36642911]
[1765723174069,7.64292265,130.84,130.79,0.72]
[1765723175192,7.64292265,130.84,130.79,8.36551993]
[1765723175577,7.64292265,130.84,130.8,0.72]
[1765723176365,19.10191155,130.88,130.8,8.36507129]
[1765723176571,16.02117062,130.87,130.81,0.28432314]
[1765723176788,16.02117062,130.87,130.82,0.72]
[1765723177968,16.02117062,130.87,130.82,8.36387077]
[1765723178591,16.02117062,130.87,130.83,0.72]
[1765723180166,7.64077421,130.88,130.83,8.3634005]
[1765723180371,8.38,130.89,130.83,8.3634005]
[1765723180572,8.38,130.89,130.84,0.72]
[1765723181396,16.02019144,130.89,130.84,8.3627031]
[1765723181772,16.02019144,130.89,130.85,0.72]
[1765723182568,16.02019144,130.89,130.85,8.36229415]
[1765723182790,16.02019144,130.89,130.86,0.72]
[1765723183568,16.72019144,130.89,130.82,26.75305679]
[1765723183774,16.72019144,130.89,130.83,0.72]
[1765723183974,16.02019144,130.89,130.83,0.72]
[1765723184899,8.38,130.89,130.84,7.64292265]
[1765723185105,7.6394809,130.9,130.85,0.28432314]
[1765723185281,7.6394809,130.9,130.85,1.00432314]
[1765723185597,16.01904155,130.91,130.85,1.00432314]
[1765723185799,16.01904155,130.91,130.86,0.72]
[1765723186003,7.63904155,130.91,130.86,0.72]
[1765723186175,7.63841392,130.92,130.86,0.72]
[1765723186776,27.43404483,130.92,130.87,0.28432314]
[1765723187083,0.7,130.91,130.86,1.00432314]
[1765723187303,0.7,130.91,130.87,0.72]
[1765723187690,0.7,130.91,130.86,0.28432314]
[1765723187901,0.7,130.91,130.86,1.00432314]
[1765723188099,0.7,130.91,130.86,8.64603514]
[1765723188296,0.7,130.91,130.87,0.72]
[1765723188500,8.38,130.9,130.84,9.1]
[1765723188804,26.74001069,130.89,130.84,9.1]
[1765723188999,27.44001069,130.89,130.84,0.72]
[1765723189200,0.7,130.88,130.84,0.72]
[1765723190307,7.64117062,130.87,130.84,0.72]
[1765723191205,7.64117062,130.87,130.81,7.92856786]
[1765723191389,0.7,130.86,130.81,8.64856786]
[1765723191592,16.02117062,130.87,130.83,7.64302582]
[1765723192074,16.02117062,130.87,130.84,0.72]
[1765723193480,7.640802,130.88,130.84,8.3628883]
[1765723193985,7.64015744,130.89,130.85,1.00432314]
[1765723194310,7.63957618,130.9,130.86,0.72]
[1765723196295,8.33957618,130.9,130.86,0.72]
[1765723196788,7.63957618,130.9,130.86,0.72]
[1765723199079,7.63957618,130.9,130.86,8.36170501]
[1765723199501,7.63957618,130.9,130.87,0.69]
[1765723200617,7.63957618,130.9,130.85,0.97432314]
[1765723200788,0.7,130.89,130.84,0.69]
[1765723200983,8.36,130.88,130.84,0.69]
[1765723201409,15.99957618,130.9,130.86,7.64171002]
[1765723201584,8.36,130.9,130.87,0.69]
[1765723202095,112.23922914,130.91,130.87,0.69]
[1765723203191,104.6,130.91,130.87,0.69]
[1765723203584,104.6,130.91,130.88,7.64058679]
[1765723204288,104.6,130.91,130.89,0.69]
[1765723204490,15.99839083,130.92,130.89,0.69]
[1765723204715,16.69839083,130.92,130.87,8.33091719]
[1765723205012,0.7,130.91,130.87,8.33091719]
[1765723205414,0.7,130.91,130.87,7.64091719]
[1765723205617,0.7,130.91,130.88,0.69]
[1765723206286,8.33909141,130.91,130.87,8.33091719]
[1765723206910,8.33909141,130.91,130.87,7.64091719]
[1765723207082,8.33909141,130.91,130.88,0.71]
[1765723207702,8.33909141,130.91,130.86,7.92593509]
[1765723207920,7.63909141,130.91,130.86,7.92593509]
[1765723208213,8.31909141,130.91,130.87,0.71]
[1765723209014,27.41618101,130.91,130.87,0.71]
[1765723209413,7.63909141,130.91,130.87,8.35104254]
[1765723209787,7.63909141,130.91,130.88,0.71]
[1765723209991,15.99840055,130.92,130.88,0.71]
[1765723210191,15.99840055,130.92,130.88,0.99432314]
[1765723210617,15.99840055,130.92,130.89,0.71]
[1765723211523,21.4070912,130.94,130.89,8.34978309]
[1765723211815,22.0870912,130.94,130.89,8.34978309]
[1765723211984,21.4070912,130.94,130.9,0.71]
[1765723212185,15.99719668,130.94,130.9,0.99432314]
[1765723212611,15.99719668,130.94,130.91,0.71]
[1765723213516,0.68,130.93,130.88,8.35025961]
[1765723214024,0.68,130.93,130.88,0.71]
[1765723214193,0.68,130.93,130.89,0.71]
[1765723215422,7.63825236,130.92,130.89,0.71]
[1765723219804,7.63825236,130.92,130.88,7.64056101]
[1765723220008,8.31825236,130.92,130.88,7.64056101]
[1765723220212,8.31825236,130.92,130.89,0.71]
[1765723220801,7.63825236,130.92,130.87,7.925388]
[1765723221007,9.04,130.91,130.87,0.71]
[1765723223029,7.6394194,130.9,130.87,0.71]
[1765723223603,16.67908898,130.91,130.87,8.35101449]
[1765723223810,16.67908898,130.91,130.87,0.71]
[1765723224020,16.67908898,130.91,130.88,0.71]
[1765723224410,16.67908898,130.91,130.86,7.92581594]
[1765723224608,16.67908898,130.91,130.87,0.71]
[1765723225034,8.31998631,130.9,130.87,0.71]
[1765723225541,7.63998631,130.9,130.87,0.71]
[1765723228133,9.06,130.9,130.87,0.71]
[1765723228430,8.36,130.9,130.87,0.71]
[1765723228822,9.06,130.9,130.87,0.71]
[1765723230311,15.99967333,130.9,130.87,0.71]
[1765723231741,16.69967333,130.9,130.87,0.71]
[1765723232041,15.99967333,130.9,130.87,0.71]
[1765723236540,0.7,130.89,130.85,9.07]
[1765723236744,104.6,130.88,130.84,0.71]
[1765723237146,104.6,130.88,130.84,0.85216157]
[1765723237352,104.6,130.88,130.84,0.71]
[1765723238140,104.6,130.88,130.85,7.64221744]
[1765723238520,112.24087824,130.88,130.84,8.63706172]
[1765723238725,112.94087824,130.88,130.84,8.63706172]
[1765723238940,112.24087824,130.88,130.85,0.71]
[1765723240553,112.94087824,130.88,130.85,0.71]
[1765723243252,112.24087824,130.88,130.84,8.49490015]
[1765723243443,16.70173186,130.87,130.84,0.71]
[1765723243838,0.7,130.86,130.82,16.99814106]
[1765723244025,0.7,130.86,130.83,0.71]
[1765723244423,0.7,130.86,130.81,8.35427984]
[1765723244641,0.7,130.86,130.82,0.71]
[1765723245442,7.64233855,130.85,130.82,0.71]
[1765723246349,8.34194123,130.86,130.82,8.35402892]
[1765723246527,7.64194123,130.86,130.82,8.35402892]
[1765723246732,16.00141469,130.87,130.83,0.71]
[1765723246934,16.70141469,130.87,130.83,0.71]
[1765723247551,16.70141469,130.87,130.83,8.35348339]
[1765723247950,16.70141469,130.87,130.83,0.71]
[1765723248256,16.70141469,130.87,130.84,0.71]
[1765723249953,0.7,130.86,130.82,0.71]
[1765723250255,0.7,130.86,130.8,7.64503726]
[1765723250637,0.7,130.86,130.81,0.71]
[1765723251956,7.64233855,130.85,130.81,0.71]
[1765723252157,8.36,130.84,130.81,0.71]
[1765723252372,9.06,130.84,130.81,0.71]
[1765723252536,9.06,130.84,130.8,0.71]
[1765723252739,0.7,130.83,130.8,0.71]
[1765723252937,0.7,130.83,130.79,8.49776461]
[1765723253361,0.7,130.83,130.79,7.78776461]
[1765723253561,0.7,130.83,130.8,0.71]
[1765723253858,8.34392622,130.83,130.79,0.71]
[1765723254157,40.49978452,130.83,130.75,0.71]
[1765723254357,0.7,130.82,130.75,8.3578323]
[1765723254568,8.38,130.81,130.75,8.3578323]
[1765723255160,0.7,130.8,130.75,8.3578323]
[1765723255661,0.7,130.8,130.76,0.71]
[1765723256053,8.34584415,130.8,130.75,7.6478323]
[1765723256244,21.39293535,130.8,130.73,9.08]
[1765723256440,0.71,130.79,130.73,7.64933164]
[1765723256641,8.38,130.78,130.74,0.72]
[1765723257054,0.71,130.77,130.73,7.64933164]
[1765723257265,8.38,130.78,130.74,0.72]
[1765723257467,0.71,130.77,130.74,0.72]
[1765723257645,0.71,130.77,130.72,7.93413814]
[1765723257842,0.71,130.77,130.72,8.369815]
[1765723258159,26.76659528,130.76,130.7,28.73087676]
[1765723258348,9.09,130.75,130.7,28.73087676]
[1765723258551,9.09,130.75,130.71,0.72]
[1765723259558,8.38,130.75,130.71,0.72]
[1765723260069,9.09,130.75,130.71,0.72]
[1765723260238,8.35876854,130.74,130.71,0.72]
[1765723260440,8.35876854,130.74,130.7,12.0]
[1765723260763,7.64876854,130.74,130.71,0.72]
[1765723261362,0.71,130.73,130.7,12.0]
[1765723261663,8.38,130.72,130.7,12.0]
[1765723262154,0.71,130.71,130.7,12.0]
[1765723262362,8.36052406,130.71,130.7,12.0]
[1765723263157,16.74052406,130.71,130.7,12.0]
[1765723264067,8.38,130.71,130.7,12.0]
[1765723264774,16.03009686,130.72,130.7,12.0]
[1765723264940,16.74009686,130.72,130.7,12.0]
[1765723265343,16.03009686,130.72,130.7,12.0]
[1765723265550,8.38,130.72,130.71,0.72]
[1765723265974,7.64898823,130.74,130.71,0.72]
[1765723266363,16.02840358,130.75,130.71,0.72]
[1765723268155,16.02840358,130.75,130.71,8.37049084]
[1765723268354,7.64769373,130.76,130.72,0.28432314]
[1765723268546,7.64769373,130.76,130.72,1.00432314]
[1765723268856,0.71,130.76,130.72,0.72]
[1765723269055,0.5,130.75,130.72,0.72]
[1765723269451,35.85465301,130.77,130.72,0.72]
[1765723269848,35.14465301,130.77,130.72,0.72]
[1765723270078,7.64818355,130.75,130.7,12.72]
[1765723270452,9.09,130.74,130.7,12.0]
[1765723270865,8.38,130.74,130.71,0.72]
[1765723271080,8.38,130.74,130.71,1.00432314]
[1765723271580,7.64818355,130.75,130.72,0.72]
[1765723271952,104.6,130.77,130.73,0.28432314]
[1765723272157,120.62721465,130.77,130.73,7.9335153]
[1765723272396,120.62721465,130.77,130.74,0.72]
[1765723272759,16.02721465,130.77,130.74,0.72]
[1765723273377,8.38,130.77,130.74,0.72]
[1765723274087,8.38,130.77,130.74,8.36836713]
[1765723274382,16.02541784,130.8,130.75,1.00432314]
[1765723274580,7.64541784,130.8,130.75,1.00432314]
[1765723274759,7.64541784,130.8,130.76,0.72]
[1765723275357,8.38,130.82,130.76,0.72]
[1765723275583,16.02421596,130.82,130.76,0.72]
[1765723276271,16.02421596,130.82,130.78,0.28432314]
[1765723276468,8.38,130.82,130.78,0.28432314]
[1765723276663,16.02429376,130.82,130.79,0.72]
[1765723276859,13.7570912,130.84,130.79,0.72]
[1765723276860,7.64367414,130.83,130.79,0.72]
[1765723277175,13.0470912,130.84,130.79,0.72]
[1765723277176,16.02308898,130.84,130.79,0.72]
[1765723277658,8.38,130.84,130.79,0.72]
[1765723277860,8.38,130.87,130.81,0.28432314]
[1765723278085,21.4270912,130.87,130.81,0.28432314]
[1765723278285,29.06865116,130.87,130.82,8.36409111]
[1765723278464,21.4270912,130.87,130.83,0.28432314]
[1765723278668,7.6394194,130.9,130.83,1.00432314]
[1765723279066,27.47761921,130.91,130.84,0.72]
[1765723279067,16.0190116,130.91,130.84,0.72]
[1765723280389,16.0190116,130.91,130.86,0.28432314]
[1765723280887,16.0190116,130.91,130.87,0.72]
[1765723282087,16.7290116,130.91,130.87,0.72]
[1765723283691,0.71,130.9,130.85,1.00432314]
[1765723283894,0.71,130.9,130.85,0.28432314]
[1765723284082,0.71,130.9,130.86,0.72]
[1765723284490,8.34989203,130.9,130.86,0.72]
[1765723284884,0.71,130.89,130.83,0.72]
[1765723285062,0.71,130.89,130.82,0.72]
[1765723285063,8.38,130.88,130.82,0.72]
[1765723285264,8.38,130.88,130.82,8.36366296]
[1765723285470,9.09,130.88,130.82,8.36366296]
[1765723285692,9.09,130.88,130.83,0.72]
[1765723286691,7.64117062,130.87,130.83,0.72]
[1765723286892,8.31117062,130.87,130.83,0.72]
[1765723288371,0.67,130.86,130.81,0.28432314]
[1765723288566,0.67,130.86,130.82,7.64405515]
[1765723288984,8.3120255,130.86,130.82,8.32405515]
[1765723291599,0.67,130.85,130.79,17.18994492]
[1765723291773,7.6420255,130.86,130.82,0.68]
[1765723291774,16.6920255,130.86,130.82,0.68]
[1765723292599,0.67,130.85,130.8,8.60915375]
[1765723292970,8.38,130.86,130.81,0.68]
[1765723293698,7.64064645,130.88,130.83,0.28432314]
[1765723293902,16.02064645,130.88,130.83,0.28432314]
[1765723294201,16.02064645,130.88,130.84,0.68]
[1765723294700,0.67,130.87,130.83,7.92733283]
[1765723294883,0.67,130.87,130.82,0.68]
[1765723295778,0.67,130.87,130.81,7.64446426]
[1765723296172,0.67,130.87,130.8,0.96432314]
[1765723296378,13.0470912,130.85,130.8,8.32512429]
[1765723296596,21.4270912,130.85,130.79,16.02567991]
[1765723296799,8.31292265,130.84,130.79,0.68]
[1765723297100,8.31292265,130.84,130.79,8.32563636]
[1765723297492,8.31292265,130.84,130.8,0.68]
[1765723297679,7.64292265,130.84,130.79,7.64563636]
[1765723297884,8.31292265,130.84,130.8,0.68]
[1765723298300,27.42022928,130.84,130.8,0.68]
[1765723299084,21.4270912,130.85,130.8,8.32525081]
[1765723299085,29.06953131,130.85,130.8,8.32525081]
[1765723299285,29.06953131,130.85,130.81,0.68]
[1765723299901,29.06953131,130.85,130.8,7.64525081]
[1765723299902,0.67,130.84,130.8,7.64525081]
[1765723300075,0.67,130.84,130.81,0.68]
[1765723300277,29.73953131,130.85,130.81,0.68]
[1765723301501,29.06953131,130.85,130.81,8.32458078]
[1765723302002,21.4270912,130.85,130.82,0.68]
[1765723302203,7.64192829,130.86,130.82,0.68]
[1765723302702,7.64192829,130.86,130.82,8.32374963]
[1765723302880,16.02125479,130.87,130.83,0.68]
[1765723303893,16.69125479,130.87,130.83,0.68]
[1765723305311,16.69125479,130.87,130.83,8.32325181]
[1765723306076,16.69125479,130.87,130.83,0.68]
[1765723306502,16.69125479,130.87,130.83,8.32349482]
[1765723307489,16.69125479,130.87,130.83,0.68]
[1765723307694,0.67,130.86,130.81,0.68]
[1765723308096,35.12418135,130.87,130.81,0.96432314]
[1765723308406,35.12418135,130.87,130.82,7.64373517]
[1765723308612,35.12418135,130.87,130.82,8.32373517]
[1765723308916,16.02125479,130.87,130.83,8.32348773]
[1765723309111,16.69125479,130.87,130.84,0.68]
[1765723309711,117.6470912,130.89,130.84,8.32288511]
[1765723310206,117.6470912,130.89,130.85,0.68]
[1765723310911,0.67,130.88,130.83,7.92758871]
[1765723311308,0.67,130.88,130.84,0.68]
[1765723312900,7.64117062,130.87,130.84,0.68]
[1765723313100,7.64117062,130.87,130.84,8.32280475]
[1765723313415,8.31081001,130.88,130.84,8.32280475]
[1765723313788,7.64081001,130.88,130.85,0.68]
[1765723314201,8.31081001,130.88,130.85,0.68]
[1765723316519,16.69081001,130.88,130.85,0.68]
[1765723316900,35.792277,130.88,130.84,0.67]
[1765723319316,16.69081001,130.88,130.84,8.31274725]
[1765723319522,16.02081001,130.88,130.85,0.67]
[1765723319700,16.69081001,130.88,130.85,0.67]
[1765723322022,16.69081001,130.88,130.84,0.67]
[1765723322227,0.67,130.87,130.83,7.64350684]
[1765723322535,8.38,130.86,130.83,7.64350684]
[1765723322701,8.38,130.86,130.84,0.67]
[1765723323201,0.67,130.87,130.84,0.67]
[1765723323202,16.02081001,130.88,130.84,0.67]
[1765723324326,16.69081001,130.88,130.84,8.31289504]
[1765723324743,16.69081001,130.88,130.85,0.67]
[1765723326525,0.67,130.87,130.82,0.67]
[1765723326707,8.38,130.86,130.81,0.67]
[1765723327029,21.4270912,130.86,130.79,0.67]
[1765723327326,0.68,130.85,130.79,0.67]
[1765723327530,8.38,130.84,130.79,0.67]
[1765723327927,0.68,130.83,130.79,0.67]
[1765723328431,7.64409111,130.82,130.79,0.67]
[1765723329306,8.32409111,130.82,130.79,0.67]
[1765723329505,7.64409111,130.82,130.79,0.67]
[1765723330026,7.64362304,130.83,130.79,8.31576855]
[1765723330205,7.64362304,130.83,130.8,0.67]
[1765723331112,7.64316372,130.84,130.8,8.31525643]
[1765723331317,7.64117062,130.87,130.81,0.95432314]
[1765723331625,8.38,130.86,130.81,0.95432314]
[1765723331930,8.38,130.86,130.82,0.67]
[1765723332528,9.06,130.86,130.82,0.67]
[1765723333028,7.64233855,130.85,130.82,0.67]
[1765723334026,7.64233855,130.85,130.82,8.31405585]
[1765723334226,16.7019377,130.86,130.82,8.31405585]
[1765723334522,16.0219377,130.86,130.83,0.67]
[1765723335109,8.38,130.86,130.83,8.31337706]
[1765723335516,8.38,130.86,130.84,0.67]
[1765723338230,8.38,130.86,130.83,7.64337706]
[1765723338231,9.06,130.86,130.83,8.31337706]
[1765723338818,8.38,130.86,130.83,8.31337706]
[1765723339022,16.7018542,130.86,130.83,0.67]
[1765723339225,16.7018542,130.86,130.81,7.6445755]
[1765723339431,16.7018542,130.86,130.82,0.67]
[1765723339811,0.68,130.85,130.81,7.6445755]
[1765723340123,35.80624056,130.86,130.82,0.67]
[1765723340616,35.80624056,130.86,130.82,8.31400201]
[1765723340617,16.0218542,130.86,130.82,8.31400201]
[1765723341123,16.0218542,130.86,130.83,0.67]
[1765723341742,16.0218542,130.86,130.83,8.31347859]
[1765723342416,16.0218542,130.86,130.83,0.67]
[1765723347742,16.6918542,130.86,130.82,8.33385747]
[1765723348718,0.71,130.85,130.81,7.64457148]
[1765723348919,0.71,130.85,130.81,8.30457148]
[1765723349136,16.0218542,130.86,130.82,0.66]
[1765723349445,16.7318542,130.86,130.82,8.30390563]
[1765723350217,16.7318542,130.86,130.82,7.64390563]
[1765723350546,16.7318542,130.86,130.83,0.66]
[1765723350843,16.7318542,130.86,130.82,0.66]
[1765723351446,16.7318542,130.86,130.82,8.30392224]
[1765723351947,16.7318542,130.86,130.83,0.66]
[1765723362253,16.7318542,130.86,130.83,8.3034053]
[1765723362672,16.7318542,130.86,130.84,0.66]
[1765723362866,16.0218542,130.86,130.83,7.6434053]
[1765723363169,16.7318542,130.86,130.83,8.3034053]
[1765723365067,16.7318542,130.86,130.83,0.66]
[1765723366331,0.71,130.85,130.82,8.30409111]
[1765723366532,0.71,130.85,130.83,0.66]
[1765723367157,16.7318542,130.86,130.83,0.66]
[1765723369863,16.7318542,130.86,130.83,8.30341055]
[1765723370232,16.7318542,130.86,130.83,0.66]
[1765723371864,0.71,130.85,130.82,7.64370125]
[1765723372062,0.71,130.85,130.82,8.30370125]
[1765723372265,0.71,130.85,130.83,0.66]
[1765723372847,16.7318542,130.86,130.83,0.66]
[1765723375254,16.0218542,130.86,130.81,7.64460218]
[1765723375457,16.7318542,130.86,130.82,0.66]
[1765723375654,16.7318542,130.86,130.82,8.30393413]
[1765723376053,16.7318542,130.86,130.83,0.71]
[1765723377742,16.0218542,130.86,130.83,0.71]
[1765723378575,13.0470912,130.87,130.83,8.35311593]
[1765723378948,21.35828151,130.87,130.84,0.71]
[1765723379148,21.35828151,130.87,130.82,7.64384603]
[1765723379358,0.67,130.86,130.83,0.71]
[1765723379743,20.68828151,130.87,130.83,0.71]
[1765723379947,21.35828151,130.87,130.83,0.71]
[1765723380745,0.67,130.86,130.83,0.71]
[1765723380982,9.05,130.86,130.83,0.71]
[1765723382684,0.67,130.85,130.81,8.63851348]
[1765723382882,8.31252904,130.85,130.81,7.92851348]
[1765723383089,8.31252904,130.85,130.82,0.71]
[1765723383749,7.64252904,130.85,130.82,0.71]
[1765723383948,16.69199072,130.86,130.82,0.71]
[1765723385049,0.67,130.85,130.8,0.71]
[1765723385245,8.38,130.84,130.8,0.71]
[1765723385790,9.05,130.84,130.8,0.71]
[1765723386491,7.64350684,130.83,130.8,0.71]
[1765723386980,8.31350684,130.83,130.8,0.71]
[1765723387988,7.64350684,130.83,130.8,0.71]
[1765723389820,8.31350684,130.83,130.8,0.71]
[1765723391031,7.64350684,130.83,130.8,0.71]
[1765723392920,16.69312369,130.84,130.8,8.3552422]
[1765723393292,0.67,130.83,130.8,0.71]
[1765723393495,0.67,130.83,130.79,7.64563998]
[1765723393691,0.67,130.83,130.8,0.71]
[1765723394207,35.13043032,130.84,130.8,0.71]
[1765723394506,7.64193848,130.86,130.8,8.35521099]
[1765723394716,16.02193848,130.86,130.8,8.35521099]
[1765723394922,16.69193848,130.86,130.81,0.71]
[1765723395391,0.67,130.85,130.81,0.71]
[1765723395979,8.31248658,130.85,130.81,8.35442533]
[1765723396184,8.31248658,130.85,130.82,0.71]
[1765723397325,7.64248658,130.85,130.82,0.71]
[1765723399732,0.67,130.84,130.8,7.64508396]
[1765723399906,8.38,130.83,130.76,9.07]
[1765723400224,8.38,130.83,130.77,0.71]
[1765723400427,0.67,130.82,130.77,0.71]
[1765723401205,7.64467548,130.81,130.77,8.35688557]
[1765723401816,7.64467548,130.81,130.78,0.71]
[1765723401817,8.31467548,130.81,130.78,0.71]
[1765723402128,7.64467548,130.81,130.78,0.71]
[1765723402508,8.31467548,130.81,130.78,0.71]
[1765723402920,8.31467548,130.81,130.77,0.71]
[1765723403224,8.31467548,130.81,130.78,0.71]
[1765723404333,7.64409111,130.82,130.78,8.35641371]
[1765723404931,8.31409111,130.82,130.79,0.71]
[1765723405632,0.67,130.81,130.77,8.35680701]
[1765723405803,8.31481591,130.81,130.78,0.71]
[1765723406008,7.64481591,130.81,130.78,0.71]
[1765723407432,7.64409111,130.82,130.78,0.71]
[1765723407636,0.7,130.81,130.78,0.71]
[1765723408305,8.34409111,130.82,130.78,0.71]
[1765723409007,7.64409111,130.82,130.78,0.71]
[1765723409208,8.34494747,130.81,130.78,0.71]
[1765723409604,9.08,130.8,130.75,0.67]
[1765723410223,0.7,130.79,130.75,0.67]
[1765723410731,0.7,130.8,130.75,0.67]
[1765723410907,9.08,130.8,130.75,8.3180051]
[1765723411111,0.7,130.79,130.75,8.3180051]
[1765723411335,0.7,130.79,130.73,19.40707604]
[1765723411336,8.34606707,130.79,130.76,0.67]
[1765723416340,26.76067827,130.79,130.72,8.38]
[1765723416529,0.7,130.78,130.73,0.67]
[1765723416736,8.38,130.77,130.73,0.67]
[1765723416930,8.38,130.77,130.72,0.67]
[1765723417113,0.7,130.76,130.72,0.67]
[1765723418134,0.7,130.76,130.7,19.65071655]
[1765723418335,13.0470912,130.74,130.7,12.0]
[1765723418516,7.64935362,130.73,130.7,12.67]
[1765723418717,21.39604138,130.74,130.71,0.67]
[1765723419113,48.89796275,130.74,130.71,0.67]
[1765723419340,48.89796275,130.74,130.7,12.0]
[1765723419518,0.7,130.73,130.7,12.0]
[1765723419718,104.6,130.72,130.7,12.0]
[1765723420036,8.38,130.71,130.7,12.0]
[1765723420231,9.08,130.71,130.7,12.0]
[1765723420419,8.38,130.71,130.7,12.67]
[1765723420619,104.6,130.72,130.7,20.32106065]
[1765723420833,8.38,130.74,130.71,0.67]
[1765723421643,16.0289134,130.74,130.71,0.67]
[1765723422745,8.38,130.74,130.71,8.32037849]
[1765723422911,105.3,130.78,130.71,8.32037849]
[1765723423115,8.38,130.77,130.72,0.67]
[1765723423433,16.72715514,130.77,130.72,0.67]
[1765723423814,16.02715514,130.77,130.72,0.67]
[1765723424016,112.24646295,130.78,130.72,0.95432314]
[1765723424514,0.5,130.77,130.73,8.31894195]
[1765723424848,7.64525993,130.8,130.74,8.66432314]
[1765723425020,7.64525993,130.8,130.74,9.33432314]
[1765723425224,0.7,130.81,130.75,0.67]
[1765723425225,7.64476557,130.81,130.75,0.67]
[1765723426370,0.7,130.8,130.75,0.67]
[1765723426578,7.64584448,130.79,130.75,8.31802111]
[1765723426947,8.34584448,130.79,130.76,0.67]
[1765723427182,7.64584448,130.79,130.76,0.67]
[1765723427781,7.64525993,130.8,130.76,0.67]
[1765723427936,8.34525993,130.8,130.76,0.67]
[1765723429567,8.84525993,130.8,130.76,0.67]
[1765723430444,8.14525993,130.8,130.76,0.67]
[1765723430644,8.34525993,130.8,130.76,0.67]
[1765723431147,20.69182817,130.81,130.76,8.3175364]
[1765723431779,13.0470912,130.81,130.78,7.64642911]